bitfinex-derivatives/quotes_ETHF0:USTF0_20251119
["timestamp","ask_amount","ask_price","bid_price","bid_amount"]
[1763519124617,0.51978,3118.8,3118.7,4.367]
[1763519126017,0.51978,3118.8,3118.7,1.1592]
[1763519126222,1.74842,3118.6,3118.5,0.00481417]
[1763519128319,1.74842,3118.6,3118.5,4.17e-06]
[1763519128523,1.74842,3118.6,3117.6,1.14689514]
[1763519128524,2.35562,3118.0,3117.9,3.2078]
[1763519129525,0.51992,3118.0,3117.9,4.3461]
[1763519130926,2.35562,3118.0,3117.9,3.2078]
[1763519131620,1.68692,3118.0,3117.9,4.3461]
[1763519131825,0.51992,3118.0,3117.9,4.3461]
[1763519132218,2.35562,3118.0,3117.9,3.2078]
[1763519135326,0.51997,3117.7,3117.6,1.14311417]
[1763519135526,1.68697,3117.7,3117.6,0.00481417]
[1763519137431,3.2078,3117.8,3117.5,0.00259805]
[1763519137432,1.68698,3117.6,3117.5,2.22e-06]
[1763519138527,8.83710035,3117.6,3117.5,2.22e-06]
[1763519140429,7.68698,3117.6,3117.5,2.22e-06]
[1763519141034,1.68698,3117.6,3117.5,1.13830222]
[1763519141227,1.68698,3117.6,3117.5,2.22e-06]
[1763519142237,0.51998,3117.6,3117.5,5.07160222]
[1763519142536,0.51997,3117.7,3117.6,1.1383]
[1763519142833,1.68697,3117.7,3117.6,1.1383]
[1763519143228,0.51997,3117.7,3117.6,1.1383]
[1763519144229,1.68697,3117.7,3117.6,1.1383]
[1763519145024,1.68697,3117.7,3117.5,2.22e-06]
[1763519145225,0.51997,3117.7,3117.5,2.22e-06]
[1763519145931,0.6687,3117.0,3116.2,0.85710558]
[1763519146133,0.52023,3116.1,3116.0,5.0716]
[1763519146328,0.5202,3116.3,3116.0,5.0716]
[1763519146536,0.52022,3116.2,3116.1,1.1383]
[1763519146938,0.00306906,3116.2,3116.1,1.14179532]
[1763519147339,0.00481417,3116.5,3116.4,1.1383]
[1763519147539,0.00481417,3116.5,3116.4,4.3461]
[1763519148132,0.00481417,3116.5,3116.4,1.1383]
[1763519148332,0.00897847,3116.5,3116.4,1.1383]
[1763519150732,0.00897847,3116.5,3116.4,4.3461]
[1763519151532,0.40405402,3116.8,3116.7,1.1383]
[1763519151737,3.2078,3117.5,3117.0,0.3506]
[1763519151932,3.7278,3117.5,3117.4,1.1383]
[1763519152734,0.52007,3117.1,3117.0,4.6967]
[1763519154635,1.167,3116.6,3116.3,0.85710558]
[1763519154937,0.6687,3117.0,3116.6,1.1383]
[1763519155138,0.52013,3116.7,3116.6,1.1383]
[1763519155444,0.52012,3116.8,3116.7,1.1383]
[1763519155945,0.52005,3117.2,3117.1,1.1383]
[1763519156333,0.0024104,3117.5,3117.0,3.9333]
[1763519156534,0.5224104,3117.5,3117.4,1.1383]
[1763519156734,0.0024104,3117.5,3117.4,1.1383]
[1763519157740,0.52006,3117.2,3117.1,1.0316]
[1763519160333,1.62756,3117.2,3117.1,1.0316]
[1763519160938,0.52014,3116.7,3116.6,1.0316]
[1763519161248,3.2078,3117.3,3117.2,1.0316]
[1763519161555,0.0024104,3117.5,3117.4,1.0316]
[1763519162241,3.72763,3118.6,3118.0,1.6627]
[1763519162442,3.72763,3118.6,3118.5,1.0316]
[1763519162744,0.51983,3118.6,3118.5,1.0316]
[1763519163241,0.00288511,3118.6,3118.5,1.66524009]
[1763519165347,4.31818511,3118.6,3118.5,0.00254009]
[1763519165544,4.31818511,3118.6,3118.0,4.779]
[1763519165545,0.5199,3118.1,3118.0,4.779]
[1763519165752,3.21068511,3118.6,3118.3,1.0316]
[1763519166050,3.21068511,3118.6,3118.0,3.7474]
[1763519166051,1.1075,3118.4,3118.0,3.2078]
[1763519166247,1.6274,3118.1,3118.0,3.2078]
[1763519166552,1.6274,3118.1,3118.0,3.21032829]
[1763519168256,1.6274,3118.1,3118.0,0.00252829]
[1763519168448,10.8352,3118.1,3118.0,0.00252829]
[1763519168754,10.8352,3118.1,3117.1,0.85712871]
[1763519168755,0.52005,3117.2,3117.1,3.2078]
[1763519169061,1.62755,3117.2,3117.1,3.2078]
[1763519169547,0.52013,3116.8,3116.7,3.2078]
[1763519169752,0.52013,3116.8,3116.7,4.24342474]
[1763519169953,0.00481417,3117.1,3116.7,4.24342474]
[1763519170353,0.5201,3116.9,3116.8,1.0316]
[1763519170656,0.00481417,3117.1,3117.0,1.0316]
[1763519171849,0.00481417,3117.1,3117.0,1.6627]
[1763519174756,0.00481417,3117.1,3117.0,4.8705]
[1763519174953,3.2078,3117.8,3117.0,5.39058]
[1763519175252,0.52006,3117.2,3117.1,1.0316]
[1763519175451,1.1075,3117.1,3117.0,3.2078]
[1763519177657,1.62762,3116.8,3116.7,0.00402474]
[1763519177957,4.83542,3116.8,3116.7,0.00402474]
[1763519186359,1.0041,3116.2,3115.7,3.2078]
[1763519186567,0.52029,3115.8,3115.7,4.2505]
[1763519187265,0.5202,3116.3,3116.2,1.0427]
[1763519187462,0.52350158,3116.3,3116.2,1.04554683]
[1763519187866,0.00330158,3116.3,3116.2,1.04554683]
[1763519188759,0.00330158,3116.3,3116.2,4.25334683]
[1763519190265,0.52350158,3116.3,3116.2,4.25334683]
[1763519190967,0.00330158,3116.3,3116.2,4.25334683]
[1763519192775,0.52350158,3116.3,3116.2,4.25334683]
[1763519193072,0.00330158,3116.3,3116.2,4.25334683]
[1763519193667,0.00330158,3116.3,3116.2,4.77356683]
[1763519195575,3.72788,3117.0,3116.9,1.0341]
[1763519195967,1.15012035,3117.8,3117.3,1.0341]
[1763519196172,3.2078,3117.8,3117.3,4.2419]
[1763519196675,0.00749084,3117.4,3117.3,4.2419]
[1763519197276,0.52751084,3117.4,3117.3,4.2419]
[1763519197668,0.00749084,3117.4,3117.3,4.76193]
[1763519198870,0.00749084,3117.4,3117.3,4.2419]
[1763519199667,0.95069084,3117.4,3117.3,3.2078]
[1763519202178,0.95069084,3117.4,3117.3,4.2419]
[1763519203577,0.95069084,3117.4,3117.3,3.2078]
[1763519206476,0.52008,3117.1,3117.0,4.2419]
[1763519206675,0.00749084,3117.4,3117.3,1.0341]
[1763519211375,0.00749084,3117.4,3117.3,1.55413]
[1763519211979,0.00749084,3117.4,3117.3,1.0341]
[1763519212184,0.52751084,3117.4,3117.3,1.0341]
[1763519212384,0.00749084,3117.4,3117.3,1.55413]
[1763519213086,0.00749084,3117.4,3117.3,1.0341]
[1763519213393,0.52751084,3117.4,3117.3,1.0341]
[1763519213585,0.00749084,3117.4,3117.3,1.0341]
[1763519214592,0.00749084,3117.4,3117.3,1.55413]
[1763519215490,0.00749084,3117.4,3117.3,1.0341]
[1763519215788,0.00749084,3117.4,3117.3,1.55413]
[1763519217988,0.00749084,3117.4,3117.3,1.0341]
[1763519218390,0.00749084,3117.4,3117.3,1.55413]
[1763519219894,0.00749084,3117.4,3117.3,4.76193]
[1763519220989,1.47071084,3117.4,3117.3,3.2078]
[1763519221187,1.47505,3117.2,3117.1,1.79912484]
[1763519221395,0.52005,3117.2,3117.1,1.79912484]
[1763519222200,0.52005,3117.2,3117.1,0.9424]
[1763519222201,1.47505,3117.2,3117.1,0.9424]
[1763519223788,2.00018,3117.0,3116.9,1.79912484]
[1763519223991,2.00018,3117.0,3116.9,0.9424]
[1763519224185,0.52751084,3117.4,3117.3,0.9424]
[1763519225992,1.48251084,3117.4,3117.3,0.9424]
[1763519226194,1.47505,3117.2,3117.1,1.79912484]
[1763519227398,1.47507,3117.1,3117.0,0.85672484]
[1763519227597,0.955,3117.3,3117.2,0.9424]
[1763519228899,0.52003,3117.3,3117.2,0.9424]
[1763519229589,0.00749084,3117.4,3117.2,0.9424]
[1763519229590,0.00749084,3117.4,3117.3,0.9424]
[1763519229795,0.00749084,3117.4,3117.3,1.80185307]
[1763519230194,0.00749084,3117.4,3117.3,1.46243]
[1763519230586,0.00749084,3117.4,3117.3,0.9424]
[1763519230889,1.48251084,3117.4,3117.3,2.08818794]
[1763519231192,1.48251084,3117.4,3117.3,0.9424]
[1763519231399,0.52751084,3117.4,3117.3,0.9424]
[1763519232093,0.00749084,3117.4,3117.3,1.46243]
[1763519232293,4.35792035,3118.3,3117.5,0.5157]
[1763519232489,3.72767,3118.3,3118.2,0.9424]
[1763519232690,4.68267,3118.3,3118.2,0.9424]
[1763519232891,0.51992,3118.0,3117.9,0.9424]
[1763519233087,2.00002,3118.0,3117.9,0.9424]
[1763519233496,2.00235501,3118.0,3117.9,0.9424]
[1763519233703,0.52225501,3118.0,3117.9,0.9424]
[1763519233894,1.47725501,3118.0,3117.9,0.9424]
[1763519234196,2.00235501,3118.0,3117.9,0.9424]
[1763519234595,0.51995,3117.9,3117.7,0.85917628]
[1763519234788,0.51995,3117.8,3117.7,1.80157628]
[1763519235903,0.51995,3117.8,3117.7,0.9424]
[1763519235904,1.47495,3117.8,3117.7,0.9424]
[1763519237591,1.47497,3117.7,3117.6,0.86399045]
[1763519237793,1.47497,3117.7,3117.6,0.00481417]
[1763519238404,1.47497,3117.7,3117.6,0.94721417]
[1763519239292,1.47497,3117.7,3117.6,0.00481417]
[1763519241799,1.416,3117.0,3116.9,0.85917628]
[1763519242199,1.93608,3117.0,3116.9,0.85917628]
[1763519242401,1.93608,3117.0,3116.9,1.71537628]
[1763519242800,1.4051,3116.9,3116.8,0.85917628]
[1763519243006,1.40512,3116.8,3116.7,0.85917628]
[1763519243598,0.531,3117.0,3116.6,0.86399045]
[1763519243599,1.40514,3116.7,3116.6,0.86399045]
[1763519243905,1.40514,3116.7,3116.6,0.00481417]
[1763519245700,3.2078,3116.9,3116.8,0.8562]
[1763519245911,3.72792,3116.9,3116.8,0.8562]
[1763519246910,3.2078,3116.9,3116.8,0.8562]
[1763519247110,4.0928,3116.9,3116.8,0.85759191]
[1763519247314,1.40512,3116.8,3116.7,1.71379191]
[1763519247607,1.40512,3116.8,3116.7,0.8562]
[1763519247812,0.8313,3116.7,3116.6,0.00481417]
[1763519248107,0.8313,3116.7,3116.6,0.85051417]
[1763519248307,0.52012,3116.8,3116.7,0.8457]
[1763519250117,0.52012,3116.8,3116.6,0.00481417]
[1763519250118,3.2078,3116.9,3116.8,0.8457]
[1763519250506,3.2078,3117.3,3116.8,0.8457]
[1763519250705,0.8313,3117.2,3117.1,0.8457]
[1763519251506,1.35135,3117.2,3117.1,0.8457]
[1763519254404,3.2078,3117.3,3116.8,0.85759191]
[1763519254405,1.3623,3117.5,3117.4,0.8457]
[1763519255026,0.52005,3117.2,3117.1,0.8457]
[1763519256414,4.55907,3117.7,3117.6,0.8457]
[1763519256816,3.72777,3117.7,3117.6,0.8457]
[1763519257307,3.72777,3117.7,3117.2,0.52004]
[1763519257308,3.2078,3117.7,3117.2,0.85759191]
[1763519257711,1.35132,3117.4,3117.3,0.8457]
[1763519258105,1.35132,3117.4,3116.5,0.3314]
[1763519258106,1.35135,3117.2,3117.1,0.85759191]
[1763519258309,0.5075,3117.5,3116.9,1.70329191]
[1763519258310,1.85888,3117.0,3116.9,1.70329191]
[1763519258711,1.85888,3117.0,3116.9,0.8457]
[1763519259216,0.52007,3117.1,3117.0,0.8457]
[1763519259713,1.35137,3117.1,3117.0,0.8457]
[1763519262114,0.5075,3117.5,3117.1,0.8457]
[1763519262320,0.52,3117.5,3117.4,0.8457]
[1763519264023,1.35134,3117.3,3117.2,0.8457]
[1763519264716,1.35135,3117.2,3117.1,1.70329191]
[1763519265022,0.8313,3117.2,3117.1,1.70329191]
[1763519265221,0.52004,3117.3,3117.2,0.8457]
[1763519265622,1.35134,3117.3,3117.2,0.8457]
[1763519266012,1.35135,3117.2,3117.1,0.85759191]
[1763519266215,0.5075,3117.5,3117.1,1.70329191]
[1763519266631,0.8313,3117.2,3117.1,1.70329191]
[1763519267328,1.35132,3117.4,3117.3,0.8457]
[1763519267827,3.2078,3117.7,3117.6,0.8457]
[1763519268925,3.72777,3117.7,3117.6,0.8457]
[1763519269126,1.35125,3117.9,3117.8,0.8457]
[1763519269325,0.00233501,3118.0,3117.9,0.8457]
[1763519269618,0.00233501,3118.0,3117.9,1.70329191]
[1763519270023,0.00233501,3118.0,3117.9,2.22322191]
[1763519270222,0.8313,3117.9,3117.8,0.85759191]
[1763519270420,0.51997,3117.7,3117.6,0.85759191]
[1763519270618,1.02975501,3118.0,3117.9,0.8457]
[1763519270825,0.00233501,3118.0,3117.9,0.8457]
[1763519271227,0.00233501,3118.0,3117.9,1.36563]
[1763519271425,0.00233501,3118.0,3117.9,2.22231584]
[1763519272629,0.00233501,3118.0,3117.9,0.8457]
[1763519272832,1.35355501,3118.0,3117.9,0.8457]
[1763519273027,0.52225501,3118.0,3117.9,0.8457]
[1763519273227,0.00233501,3118.0,3117.9,0.8457]
[1763519274324,0.00233501,3118.0,3117.9,1.36563]
[1763519274721,0.00233501,3118.0,3117.9,0.8457]
[1763519275432,0.00233501,3118.0,3117.9,1.36563]
[1763519275737,0.00481417,3118.3,3117.9,1.36563]
[1763519275738,0.52468417,3118.3,3118.2,0.8457]
[1763519276031,0.00481417,3118.3,3118.2,4.57338]
[1763519276235,0.00481417,3118.3,3118.2,5.43006584]
[1763519276541,0.00481417,3118.3,3118.2,4.57338]
[1763519276738,0.00712956,3118.3,3118.2,4.57338]
[1763519277232,0.00712956,3118.3,3118.2,5.71266589]
[1763519277836,3.2078,3118.9,3118.5,0.51982]
[1763519278036,3.72757,3118.9,3118.8,0.7262]
[1763519278432,4.51097,3118.9,3118.8,0.7262]
[1763519278835,4.514519,3118.9,3118.8,0.72875837]
[1763519281240,4.514519,3118.9,3118.8,0.00255837]
[1763519281647,4.514519,3118.9,3118.8,0.72875837]
[1763519282656,4.514519,3118.9,3118.8,0.00255837]
[1763519282851,0.003549,3118.9,3118.8,1.24853837]
[1763519283946,0.003549,3118.9,3118.8,2.10304681]
[1763519284156,0.003549,3118.9,3118.8,1.58326681]
[1763519284361,1.306719,3118.9,3118.8,0.00255837]
[1763519284651,7.306719,3118.9,3118.8,0.00255837]
[1763519284850,1.30322,3118.6,3118.5,0.00481417]
[1763519285749,1.30322,3118.6,3118.5,0.00778225]
[1763519287260,0.7834,3118.6,3118.5,0.73398225]
[1763519287649,1.30322,3118.6,3118.5,0.73398225]
[1763519287950,1.30322,3118.6,3118.5,0.00778225]
[1763519289054,3.211349,3118.9,3118.6,0.7262]
[1763519289055,0.5198,3118.7,3118.6,0.7262]
[1763519289253,1.3032,3118.7,3118.6,0.7262]
[1763519289449,0.7834,3118.6,3118.5,0.00778225]
[1763519289652,1.30322,3118.6,3118.5,0.00778225]
[1763519289956,1.30322,3118.6,3118.5,0.73398225]
[1763519291952,0.003549,3118.9,3118.8,1.24598]
[1763519292157,0.523319,3118.9,3118.8,0.7262]
[1763519292458,1.30318,3118.8,3118.7,3.2078]
[1763519292857,0.003549,3118.9,3118.8,0.7262]
[1763519293053,0.786949,3118.9,3118.8,0.7262]
[1763519293961,1.306719,3118.9,3118.8,0.7262]
[1763519294160,1.30322,3118.6,3118.5,0.00778225]
[1763519294859,0.51982,3118.6,3118.5,1.25381225]
[1763519295559,0.51982,3118.6,3118.5,0.73398225]
[1763519295758,1.30322,3118.6,3118.5,0.73398225]
[1763519296256,1.30322,3118.6,3118.5,1.58778429]
[1763519296448,1.30322,3118.6,3118.5,2.10761429]
[1763519296862,1.30322,3118.6,3118.5,1.58778429]
[1763519297257,1.30322,3118.6,3118.5,2.10761429]
[1763519297458,0.51982,3118.6,3118.5,2.10761429]
[1763519297765,0.51982,3118.6,3118.5,1.25381225]
[1763519298564,0.523319,3118.9,3118.8,1.24598]
[1763519298760,0.003549,3118.9,3118.8,4.45378]
[1763519299360,0.003549,3118.9,3118.8,5.59460426]
[1763519299554,3.2078,3119.7,3119.6,0.7262]
[1763519300157,3.72743,3119.7,3119.6,0.7262]
[1763519300463,0.51968,3119.4,3119.3,0.7262]
[1763519300868,1.30306,3119.6,3119.5,0.7262]
[1763519301768,0.7834,3119.6,3119.5,0.7262]
[1763519302766,0.7834,3119.6,3119.2,4.06334719]
[1763519302970,1.2322,3119.3,3119.2,4.06334719]
[1763519303470,1.2322,3119.3,3119.2,3.908]
[1763519303774,1.1277,3119.5,3119.4,0.7002]
[1763519304162,0.7125,3119.3,3119.2,4.06334719]
[1763519304362,0.4152,3119.5,3119.0,0.85554719]
[1763519304363,0.7125,3119.1,3119.0,0.85554719]
[1763519304564,0.51972,3119.2,3119.1,0.7002]
[1763519304875,0.51972,3119.2,3119.1,1.55574719]
[1763519305059,1.64737,3119.5,3119.4,0.7002]
[1763519305260,4.44328568,3119.7,3119.6,0.7002]
[1763519305463,0.7125,3119.3,3119.2,4.06334719]
[1763519305862,0.7125,3119.3,3119.2,3.2078]
[1763519306061,0.7125,3119.3,3119.2,4.06334719]
[1763519306363,0.7125,3119.3,3119.2,3.908]
[1763519306572,0.51968,3119.4,3119.3,0.7002]
[1763519306970,1.23218,3119.4,3119.3,0.7002]
[1763519308375,1.1697,3119.3,3119.2,3.2078]
[1763519308673,1.1697,3119.3,3119.2,4.06334719]
[1763519308872,1.1697,3119.3,3119.2,4.74454719]
[1763519309076,1.1697,3119.3,3119.2,3.2078]
[1763519310265,1.1697,3119.3,3119.2,3.889]
[1763519310965,1.1697,3119.3,3119.2,3.2078]
[1763519315171,1.19717,3118.9,3118.8,0.85554719]
[1763519315386,4.40497,3118.9,3118.8,0.85554719]
[1763519315589,1.19718,3118.8,3118.7,0.85554719]
[1763519316183,0.6774,3118.8,3118.7,2.03804719]
[1763519316379,0.6774,3118.8,3118.7,1.1825]
[1763519316681,1.19718,3118.8,3118.7,1.1825]
[1763519316884,1.19718,3118.8,3118.7,0.6627]
[1763519317080,0.6774,3118.8,3118.7,0.6627]
[1763519317380,1.19718,3118.8,3118.7,0.6627]
[1763519318171,0.51976,3119.0,3118.9,0.51975]
[1763519318486,1.59355,3119.0,3118.9,0.8567471]
[1763519320576,1.59355,3119.0,3118.7,1.14072959]
[1763519320577,1.19717,3118.9,3118.8,0.8567471]
[1763519321278,1.1972,3118.7,3118.6,1.8057458]
[1763519321481,1.1972,3118.7,3118.6,1.1430458]
[1763519321772,0.3964,3119.0,3118.5,0.00778225]
[1763519321773,1.19722,3118.6,3118.5,0.00778225]
[1763519322682,1.19722,3118.6,3118.5,1.81352805]
[1763519323788,1.19722,3118.6,3118.5,1.15082805]
[1763519324283,1.19722,3118.6,3118.5,1.81352805]
[1763519324979,4.40502,3118.6,3118.5,1.15082805]
[1763519325182,4.40502,3118.6,3118.5,0.00778225]
[1763519326781,1.59372,3118.0,3117.9,4.06527939]
[1763519327289,1.59372,3118.0,3117.9,3.8705]
[1763519327887,1.59372,3118.0,3117.9,3.87450179]
[1763519329982,4.80152,3118.0,3117.9,0.00400179]
[1763519330291,1.19737,3117.7,3117.6,0.00481417]
[1763519330994,1.19747,3117.1,3117.0,0.85747939]
[1763519331195,1.19747,3117.1,3117.0,0.00333789]
[1763519331196,1.20068167,3117.1,3117.0,0.00333789]
[1763519332690,4.40848167,3117.1,3117.0,0.00333789]
[1763519334191,0.6774,3116.8,3116.4,3.2078]
[1763519334408,0.52025,3116.0,3115.9,0.85747939]
[1763519334687,1.1977,3115.7,3115.6,4.72797939]
[1763519335195,0.3964,3116.0,3115.8,0.6627]
[1763519335196,1.19768,3115.9,3115.8,0.6627]
[1763519340692,1.1977,3115.7,3115.6,3.87403893]
[1763519341393,4.4055,3115.7,3115.6,0.00353893]
[1763519341801,1.10124,3114.9,3114.8,0.5992]
[1763519342790,1.10508186,3114.9,3114.8,0.60211857]
[1763519342991,0.58464186,3114.9,3114.8,0.60211857]
[1763519343200,0.00384186,3114.9,3114.8,0.60211857]
[1763519343598,0.58464186,3114.9,3114.8,0.60211857]
[1763519344004,0.00384186,3114.9,3114.8,0.60211857]
[1763519346399,0.58464186,3114.9,3114.8,0.60211857]
[1763519346808,0.00384186,3114.9,3114.8,0.60211857]
[1763519348504,4.3089,3115.7,3115.6,0.5992]
[1763519349105,3.7886,3115.7,3115.0,0.0995]
[1763519349303,0.5808,3115.4,3115.3,0.5992]
[1763519349506,1.10504493,3115.4,3115.3,0.5992]
[1763519350109,0.58469493,3115.4,3115.3,0.5992]
[1763519350608,0.00389493,3115.4,3115.3,0.5992]
[1763519351102,0.40121417,3116.0,3115.3,0.5992]
[1763519351103,0.00481417,3116.0,3115.9,0.5992]
[1763519351309,0.00481417,3116.0,3115.9,3.807]
[1763519352309,0.00806318,3116.0,3115.9,3.807]
[1763519353902,0.95796318,3116.0,3115.9,3.2078]
[1763519354296,0.00806318,3116.0,3115.9,3.807]
[1763519355108,0.95796318,3116.0,3115.9,3.807]
[1763519356201,0.00806318,3116.0,3115.9,3.807]
[1763519356810,0.95796318,3116.0,3115.9,3.807]
[1763519357111,0.00806318,3116.0,3115.9,3.807]
[1763519357511,0.95796318,3116.0,3115.9,3.807]
[1763519357706,0.95796318,3116.0,3115.9,3.2078]
[1763519358213,0.95796318,3116.0,3115.9,3.807]
[1763519358812,0.37716318,3116.0,3115.9,3.807]
[1763519359005,0.00806318,3116.0,3115.9,3.807]
[1763519361216,0.00806318,3116.0,3115.9,4.65866869]
[1763519364217,0.00806318,3116.0,3115.9,5.17893869]
[1763519364410,0.00806318,3116.0,3115.9,4.32727]
[1763519365117,0.33236318,3116.0,3115.9,4.66543053]
[1763519365324,0.00806318,3116.0,3115.9,4.66543053]
[1763519366228,0.00806318,3116.0,3115.9,4.66537513]
[1763519366528,0.00806318,3116.0,3115.9,5.18564513]
[1763519366815,1.41561318,3116.0,3115.9,4.66537513]
[1763519367312,0.52831318,3116.0,3115.9,5.18564513]
[1763519367620,0.52831318,3116.0,3115.9,4.66537513]
[1763519368214,1.43781318,3116.0,3115.9,4.66537513]
[1763519368518,1.43781318,3116.0,3115.9,4.06617513]
[1763519369121,1.43781318,3116.0,3115.9,4.63697513]
[1763519370517,0.52831318,3116.0,3115.9,4.63697513]
[1763519370820,1.43781318,3116.0,3115.9,4.63697513]
[1763519371414,0.00806318,3116.0,3115.9,4.63697513]
[1763519371616,0.00806318,3116.0,3115.9,5.15724513]
[1763519371812,0.00806318,3116.0,3115.9,5.74592183]
[1763519372018,1.43781318,3116.0,3115.9,4.63697513]
[1763519372232,1.43781318,3116.0,3115.9,5.15724513]
[1763519372416,1.43781318,3116.0,3115.9,4.63697513]
[1763519373029,0.00806318,3116.0,3115.9,4.29887]
[1763519373726,0.00806318,3116.0,3115.9,5.4078167]
[1763519374226,0.52831318,3116.0,3115.9,4.8875467]
[1763519374419,0.52831318,3116.0,3115.9,5.4078167]
[1763519374729,0.52831318,3116.0,3115.9,4.8875467]
[1763519374923,0.52831318,3116.0,3115.9,3.7786]
[1763519375846,1.43781318,3116.0,3115.9,3.7786]
[1763519376143,1.43781318,3116.0,3115.9,4.9216458]
[1763519376540,0.85901318,3116.0,3115.9,4.9216458]
[1763519376740,0.52831318,3116.0,3115.9,4.9216458]
[1763519378235,0.85901318,3116.0,3115.9,3.7786]
[1763519379242,0.3307,3116.0,3115.9,5.49582442]
[1763519379638,0.52025,3116.0,3115.9,6.01609442]
[1763519379834,1.42975,3116.0,3115.9,5.49582442]
[1763519380246,1.43224108,3116.0,3115.9,3.7786]
[1763519380938,1.43224108,3116.0,3115.9,5.50369962]
[1763519381139,1.43224108,3116.0,3115.9,3.7786]
[1763519382042,1.43224108,3116.0,3115.9,0.5708]
[1763519382235,1.43224108,3116.0,3115.9,3.7786]
[1763519382744,0.85344108,3116.0,3115.9,3.7786]
[1763519386645,0.85344108,3116.0,3115.9,4.29887]
[1763519386853,0.00249108,3116.0,3115.9,4.29887]
[1763519389248,0.00481417,3116.3,3116.2,1.09102]
[1763519389449,0.00481417,3116.3,3116.2,2.24118676]
[1763519390152,0.00820576,3116.3,3116.2,2.24118676]
[1763519390853,0.52840576,3116.3,3116.2,2.24118676]
[1763519391754,0.00820576,3116.3,3116.2,2.24118676]
[1763519391950,0.00820576,3116.3,3116.2,1.09102]
[1763519392755,1.10720576,3116.3,3116.2,0.5708]
[1763519392953,0.52025,3116.0,3115.9,6.06616894]
[1763519393451,0.52025,3116.0,3115.9,6.58643894]
[1763519393644,1.09902,3116.2,3116.0,0.52025]
[1763519393850,1.09902,3116.2,3116.1,0.5708]
[1763519394250,0.52022,3116.2,3116.1,0.5708]
[1763519394558,0.52022,3116.2,3116.1,1.09103]
[1763519395156,0.00820576,3116.3,3116.2,1.09102]
[1763519395755,0.00820576,3116.3,3116.2,1.72381452]
[1763519396057,1.10720576,3116.3,3116.2,1.72381452]
[1763519396256,1.10720576,3116.3,3116.2,2.29461452]
[1763519396952,0.00820576,3116.3,3116.2,2.81483452]
[1763519397853,0.52840576,3116.3,3116.2,2.81483452]
[1763519398056,0.52840576,3116.3,3116.2,2.29461452]
[1763519398353,1.10720576,3116.3,3116.2,2.29461452]
[1763519399356,1.10720576,3116.3,3116.2,2.81483452]
[1763519399551,0.52840576,3116.3,3116.2,2.81483452]
[1763519400160,0.52840576,3116.3,3116.2,2.29461452]
[1763519400355,1.03600576,3116.3,3116.2,2.29461452]
[1763519400653,0.51580576,3116.3,3116.1,1.72381452]
[1763519400848,1.02783,3116.1,3116.0,1.72381452]
[1763519401048,1.34775,3116.0,3115.9,5.44301452]
[1763519401352,0.52025,3116.0,3115.9,5.44301452]
[1763519401554,0.84015,3116.0,3115.9,5.44301452]
[1763519401760,1.34775,3116.0,3115.9,5.44301452]
[1763519402057,1.34775,3116.0,3115.9,4.35732951]
[1763519402259,1.34775,3116.0,3115.9,4.0698717]
[1763519404058,1.34775,3116.0,3115.9,3.2078]
[1763519404445,0.8275,3116.0,3115.9,3.7192]
[1763519406051,0.52024,3116.1,3116.0,0.5114]
[1763519406252,0.00820576,3116.3,3116.1,0.5114]
[1763519406451,0.00820576,3116.3,3116.2,0.5114]
[1763519406861,0.00820576,3116.3,3116.2,1.66092951]
[1763519407850,0.00820576,3116.3,3116.2,1.6203467]
[1763519408062,0.00820576,3116.3,3116.2,3.34416122]
[1763519408259,3.72787,3117.1,3117.0,0.5114]
[1763519409360,4.2383115,3117.1,3117.0,0.00251374]
[1763519409865,5.3472582,3117.1,3117.0,0.00251374]
[1763519410058,0.5076,3116.6,3116.2,3.2078]
[1763519410255,0.5076,3115.9,3115.8,3.2078]
[1763519410566,1.02787,3115.9,3115.8,3.2078]
[1763519411268,1.02787,3115.9,3115.8,3.21074597]
[1763519413863,2.04640835,3116.4,3115.9,0.5114]
[1763519414161,1.02787,3115.9,3115.8,3.72214597]
[1763519414360,1.02787,3115.9,3115.8,3.21074597]
[1763519415063,0.52025,3116.1,3116.0,0.5114]
[1763519415967,2.74388,3116.4,3116.3,0.5114]
[1763519416259,1.85118,3116.4,3116.3,0.5114]
[1763519416467,0.5076,3116.3,3116.2,3.2078]
[1763519416658,0.5076,3116.3,3116.2,3.7192]
[1763519418367,1.85118,3116.4,3116.3,0.5114]
[1763519418566,2.35878,3116.4,3116.3,0.5114]
[1763519419566,1.8386,3116.4,3116.3,0.5114]
[1763519419761,1.331,3116.4,3116.3,0.5114]
[1763519419966,1.85118,3116.4,3116.3,0.5114]
[1763519421764,1.11535536,3116.9,3116.8,0.52012]
[1763519421965,0.3691,3117.5,3117.2,0.52005]
[1763519422167,0.3691,3117.5,3117.3,3.2078]
[1763519423068,0.00714703,3117.4,3117.3,3.2078]
[1763519423664,0.50624703,3117.4,3117.3,3.2078]
[1763519424865,0.00714703,3117.4,3117.3,3.2078]
[1763519425370,0.50624703,3117.4,3117.3,3.2078]
[1763519425673,1.01921,3116.9,3116.8,3.2078]
[1763519425867,0.2854,3117.0,3116.8,3.2078]
[1763519426057,0.2854,3117.0,3116.8,3.72791]
[1763519426865,0.80549,3117.0,3116.8,3.2078]
[1763519427066,0.4991,3116.9,3116.8,3.2078]
[1763519427269,0.80549,3117.0,3116.8,3.2078]
[1763519428669,0.4991,3116.9,3116.8,3.2078]
[1763519430672,1.0192,3116.9,3116.8,3.2078]
[1763519431473,1.0623,3116.9,3116.8,3.2078]
[1763519431872,1.0623,3116.9,3116.1,1.14745301]
[1763519431873,1.39527,3116.5,3116.4,3.2078]
[1763519432372,0.85307,3116.5,3116.4,3.2078]
[1763519432975,0.85307,3116.5,3116.4,3.72798]
[1763519433167,0.85307,3116.5,3116.4,3.2078]
[1763519434572,0.3329,3116.5,3116.4,3.72798]
[1763519434974,0.52012,3116.8,3116.4,3.2078]
[1763519435168,0.2854,3117.0,3116.6,0.52015]
[1763519435169,0.52013,3116.7,3116.6,0.52015]
[1763519435370,0.52013,3116.7,3116.4,3.72797]
[1763519435570,0.3329,3116.5,3116.4,3.72797]
[1763519436872,0.52012,3116.9,3116.6,0.52014]